[Event "*** Titled Tuesday Blitz"]
[Site "Chess.com"]
[Date "2021.02.02"]
[Round "9"]
[White "superchess02"]
[Black "davidkalashian"]
[Result "0-1"]
[WhiteElo "2772"]
[BlackElo "2590"]
[TimeControl "180+1"]
[EndTime "11:46:50 PST"]
[Termination "davidkalashian won by resignation"]

1. d4 {[%clk 0:03:00.9]} 1... Nf6 {[%clk 0:02:59.1]} 2. c4 {[%clk 0:03:01.5]}
2... e6 {[%clk 0:02:59.5]} 3. Nf3 {[%clk 0:03:02.4]} 3... b6 {[%clk 0:02:59.7]}
4. g3 {[%clk 0:03:02.3]} 4... Ba6 {[%clk 0:03:00]} 5. Bg2 {[%clk 0:03:03.2]}
5... Bxc4 {[%clk 0:02:59.7]} 6. Nc3 {[%clk 0:03:03.1]} 6... Ba6 {[%clk
0:02:58.9]} 7. O-O {[%clk 0:03:03.1]} 7... Be7 {[%clk 0:02:58.6]} 8. Re1 {[%clk
0:03:01.6]} 8... O-O {[%clk 0:02:56.5]} 9. e4 {[%clk 0:03:02.1]} 9... d5 {[%clk
0:02:55.9]} 10. exd5 {[%clk 0:02:57.6]} 10... exd5 {[%clk 0:02:48.2]} 11. Nh4
{[%clk 0:02:56.2]} 11... g6 {[%clk 0:02:22.6]} 12. Bg5 {[%clk 0:02:47.9]} 12...
c6 {[%clk 0:02:15.5]} 13. Qf3 {[%clk 0:02:36.4]} 13... Nbd7 {[%clk 0:02:02.1]}
14. Bh3 {[%clk 0:02:30.9]} 14... Ne4 {[%clk 0:01:52.2]} 15. Bxe7 {[%clk
0:02:09.7]} 15... Qxe7 {[%clk 0:01:53]} 16. Nxe4 {[%clk 0:02:07.3]} 16... dxe4
{[%clk 0:01:53.9]} 17. Rxe4 {[%clk 0:02:07.9]} 17... Qd6 {[%clk 0:01:51.4]} 18.
Qf4 {[%clk 0:01:39.3]} 18... Qxf4 {[%clk 0:01:44.8]} 19. Rxf4 {[%clk 0:01:40.2]}
19... f5 {[%clk 0:01:39.2]} 20. Rc1 {[%clk 0:01:30.7]} 20... Bb7 {[%clk
0:01:32.5]} 21. Nf3 {[%clk 0:01:26.3]} 21... c5 {[%clk 0:01:25.8]} 22. dxc5
{[%clk 0:01:23.2]} 22... Nxc5 {[%clk 0:01:26.7]} 23. Bf1 {[%clk 0:01:22.6]}
23... Be4 {[%clk 0:01:15.8]} 24. Bc4+ {[%clk 0:00:56.2]} 24... Kg7 {[%clk
0:01:09.1]} 25. Ng5 {[%clk 0:00:56.4]} 25... Rac8 {[%clk 0:01:01.5]} 26. f3
{[%clk 0:00:31.4]} 26... h6 {[%clk 0:00:48]} 27. Nxe4 {[%clk 0:00:27.9]} 27...
fxe4 {[%clk 0:00:44.9]} 28. Rxf8 {[%clk 0:00:26.8]} 28... Kxf8 {[%clk
0:00:37.6]} 29. fxe4 {[%clk 0:00:26.9]} 29... Nxe4 {[%clk 0:00:35.2]} 30. Rf1+
{[%clk 0:00:26.7]} 30... Ke7 {[%clk 0:00:32.7]} 31. b3 {[%clk 0:00:20.5]} 31...
Nd6 {[%clk 0:00:32.6]} 32. Bd3 {[%clk 0:00:19]} 32... g5 {[%clk 0:00:29.6]} 33.
Kf2 {[%clk 0:00:19.4]} 33... Rf8+ {[%clk 0:00:28.4]} 34. Ke2 {[%clk 0:00:19.2]}
34... Rxf1 {[%clk 0:00:27.6]} 35. Kxf1 {[%clk 0:00:20.1]} 35... Ke6 {[%clk
0:00:27.2]} 36. Ke2 {[%clk 0:00:20.7]} 36... Ke5 {[%clk 0:00:27.1]} 37. Ke3
{[%clk 0:00:21.6]} 37... Nb7 {[%clk 0:00:26.2]} 38. h4 {[%clk 0:00:21.5]} 38...
Nc5 {[%clk 0:00:26.3]} 39. Bc2 {[%clk 0:00:21.8]} 39... gxh4 {[%clk 0:00:24.6]}
40. gxh4 {[%clk 0:00:22.7]} 40... Ne6 {[%clk 0:00:25.4]} 41. Bb1 {[%clk
0:00:22.3]} 41... Nf4 {[%clk 0:00:25]} 42. Kf3 {[%clk 0:00:22]} 42... Nd5 {[%clk
0:00:23.9]} 43. Bc2 {[%clk 0:00:21.7]} 43... a5 {[%clk 0:00:19.9]} 44. a4 {[%clk
0:00:20.5]} 44... Nf6 {[%clk 0:00:18.2]} 45. Ke3 {[%clk 0:00:19.8]} 45... Nd7
{[%clk 0:00:17]} 46. Kd3 {[%clk 0:00:19.4]} 46... Kd5 {[%clk 0:00:16]} 47. Bd1
{[%clk 0:00:18.5]} 47... Nc5+ {[%clk 0:00:16.2]} 48. Kc3 {[%clk 0:00:18.9]}
48... Ne4+ {[%clk 0:00:15.9]} 49. Kc2 {[%clk 0:00:15.8]} 49... Kd4 {[%clk
0:00:15.8]} 50. Kb2 {[%clk 0:00:15.8]} 50... Nf2 {[%clk 0:00:15.3]} 51. Bf3
{[%clk 0:00:15.4]} 51... Nd3+ {[%clk 0:00:15.3]} 52. Kc2 {[%clk 0:00:15.4]}
52... Ne1+ {[%clk 0:00:14.6]} 53. Kd2 {[%clk 0:00:16.3]} 53... Nxf3+ {[%clk
0:00:15.5]} 0-1

[Event "*** Titled Tuesday Blitz"]
[Site "Chess.com"]
[Date "2021.02.02"]
[Round "9"]
[White "esapunov"]
[Black "WPWPWP-2015"]
[Result "1-0"]
[WhiteElo "2628"]
[BlackElo "2492"]
[TimeControl "180+1"]
[EndTime "11:46:53 PST"]
[Termination "esapunov won on time"]

1. c4 {[%clk 0:03:00.9]} 1... Nf6 {[%clk 0:02:41.5]} 2. Nf3 {[%clk 0:02:59.2]}
2... e6 {[%clk 0:02:37.7]} 3. Nc3 {[%clk 0:02:59]} 3... d5 {[%clk 0:02:35.8]} 4.
d4 {[%clk 0:02:59.2]} 4... c6 {[%clk 0:02:35.7]} 5. Bg5 {[%clk 0:02:58.8]} 5...
h6 {[%clk 0:02:34.7]} 6. Bxf6 {[%clk 0:02:59]} 6... Qxf6 {[%clk 0:02:33.4]} 7.
e3 {[%clk 0:02:59.7]} 7... Nd7 {[%clk 0:02:32.9]} 8. Rc1 {[%clk 0:02:56.4]} 8...
g6 {[%clk 0:02:30.8]} 9. Bd3 {[%clk 0:02:56.4]} 9... Bg7 {[%clk 0:02:30.3]} 10.
O-O {[%clk 0:02:56.6]} 10... O-O {[%clk 0:02:29.7]} 11. e4 {[%clk 0:02:57.2]}
11... dxe4 {[%clk 0:02:24.1]} 12. Nxe4 {[%clk 0:02:56.5]} 12... Qe7 {[%clk
0:02:24.1]} 13. Re1 {[%clk 0:02:56.3]} 13... Nf6 {[%clk 0:02:23.5]} 14. c5
{[%clk 0:02:47.2]} 14... Nxe4 {[%clk 0:02:20.1]} 15. Bxe4 {[%clk 0:02:47.5]}
15... Bd7 {[%clk 0:02:17.8]} 16. Qc2 {[%clk 0:02:41.3]} 16... Rfd8 {[%clk
0:02:12.9]} 17. h4 {[%clk 0:02:40.2]} 17... h5 {[%clk 0:02:07]} 18. g3 {[%clk
0:02:34.4]} 18... Be8 {[%clk 0:02:05.6]} 19. Rcd1 {[%clk 0:02:33]} 19... Rd7
{[%clk 0:01:52.4]} 20. Ne5 {[%clk 0:02:31.8]} 20... Rc7 {[%clk 0:01:46]} 21. a3
{[%clk 0:02:21.9]} 21... a5 {[%clk 0:01:44]} 22. b4 {[%clk 0:02:21.7]} 22...
axb4 {[%clk 0:01:40.2]} 23. axb4 {[%clk 0:02:21.9]} 23... Rd8 {[%clk 0:01:31.3]}
24. Kg2 {[%clk 0:02:08]} 24... Rcc8 {[%clk 0:01:21]} 25. Qc3 {[%clk 0:02:07.8]}
25... Ra8 {[%clk 0:01:09.8]} 26. Ra1 {[%clk 0:02:05.1]} 26... Qc7 {[%clk
0:01:01.1]} 27. Bf3 {[%clk 0:01:44.2]} 27... Rxa1 {[%clk 0:00:59]} 28. Qxa1
{[%clk 0:01:43.3]} 28... Qb8 {[%clk 0:00:56.3]} 29. Qc3 {[%clk 0:01:42]} 29...
Qc7 {[%clk 0:00:48.3]} 30. Rd1 {[%clk 0:01:33.9]} 30... Ra8 {[%clk 0:00:30.1]}
31. Nc4 {[%clk 0:01:26.2]} 31... Bd7 {[%clk 0:00:28.2]} 32. Qe3 {[%clk
0:01:18.2]} 32... Ra4 {[%clk 0:00:24.9]} 33. Rb1 {[%clk 0:01:16.9]} 33... Ra2
{[%clk 0:00:23.1]} 34. Nd6 {[%clk 0:01:16.2]} 34... b5 {[%clk 0:00:22.2]} 35.
Qf4 {[%clk 0:01:12.4]} 35... f6 {[%clk 0:00:19.4]} 36. Qe3 {[%clk 0:00:52]}
36... Ra8 {[%clk 0:00:18.8]} 37. Qb3 {[%clk 0:00:47.9]} 37... Qd8 {[%clk
0:00:17.7]} 38. Rd1 {[%clk 0:00:46.6]} 38... Qe7 {[%clk 0:00:17.4]} 39. Kg1
{[%clk 0:00:44.7]} 39... Kh7 {[%clk 0:00:17.4]} 40. Bg2 {[%clk 0:00:44.8]} 40...
e5 {[%clk 0:00:17.3]} 41. Re1 {[%clk 0:00:43.6]} 41... Be6 {[%clk 0:00:09.9]}
42. Qd3 {[%clk 0:00:40.4]} 42... Qd7 {[%clk 0:00:09.9]} 43. dxe5 {[%clk
0:00:39.1]} 43... fxe5 {[%clk 0:00:09.6]} 44. Be4 {[%clk 0:00:38.7]} 44... Kh8
{[%clk 0:00:03]} 45. Bxg6 {[%clk 0:00:37.9]} 45... Bd5 {[%clk 0:00:03.2]} 46.
Qe2 {[%clk 0:00:36]} 46... Qg4 {[%clk 0:00:02.4]} 47. Be4 {[%clk 0:00:20.6]}
47... Qxe2 {[%clk 0:00:02.3]} 48. Rxe2 {[%clk 0:00:20.7]} 48... Ra4 {[%clk
0:00:02]} 49. Rb2 {[%clk 0:00:19.1]} 49... Be6 {[%clk 0:00:01.1]} 50. Bxc6
{[%clk 0:00:17.7]} 50... Ra1+ {[%clk 0:00:01.2]} 51. Kg2 {[%clk 0:00:17.6]}
51... Rc1 {[%clk 0:00:01.4]} 52. Be4 {[%clk 0:00:17.1]} 52... Kg8 {[%clk
0:00:01.7]} 53. Nxb5 {[%clk 0:00:17.1]} 1-0

[Event "*** Titled Tuesday Blitz"]
[Site "Chess.com"]
[Date "2021.02.02"]
[Round "9"]
[White "LamaChampetre"]
[Black "Chamal_Gedgafov"]
[Result "1-0"]
[WhiteElo "2235"]
[BlackElo "2340"]
[TimeControl "180+1"]
[EndTime "11:46:53 PST"]
[Termination "LamaChampetre won on time"]

1. d4 {[%clk 0:03:00.9]} 1... d5 {[%clk 0:02:58.6]} 2. c4 {[%clk 0:03:00.8]}
2... c6 {[%clk 0:02:58.1]} 3. Nf3 {[%clk 0:03:00.8]} 3... e6 {[%clk 0:02:58.3]}
4. Qc2 {[%clk 0:02:58.2]} 4... Nf6 {[%clk 0:02:55]} 5. g3 {[%clk 0:02:48.8]}
5... a6 {[%clk 0:02:41.1]} 6. Bg2 {[%clk 0:02:35.3]} 6... b5 {[%clk 0:02:39.5]}
7. c5 {[%clk 0:02:30.8]} 7... Nbd7 {[%clk 0:02:28.3]} 8. O-O {[%clk 0:02:29.5]}
8... Be7 {[%clk 0:02:23.6]} 9. Bf4 {[%clk 0:02:29]} 9... O-O {[%clk 0:02:21.6]}
10. Nbd2 {[%clk 0:02:26.8]} 10... a5 {[%clk 0:02:21.1]} 11. e4 {[%clk
0:02:26.6]} 11... dxe4 {[%clk 0:02:16]} 12. Nxe4 {[%clk 0:02:25.9]} 12... Nxe4
{[%clk 0:02:05]} 13. Qxe4 {[%clk 0:02:26.8]} 13... Bb7 {[%clk 0:02:04.5]} 14.
Ne5 {[%clk 0:02:22.9]} 14... Nf6 {[%clk 0:01:59.8]} 15. Qe3 {[%clk 0:02:02.1]}
15... Nd5 {[%clk 0:01:59.7]} 16. Bxd5 {[%clk 0:01:58.6]} 16... exd5 {[%clk
0:01:58.9]} 17. Rfe1 {[%clk 0:01:54.5]} 17... Re8 {[%clk 0:01:55.3]} 18. Qf3
{[%clk 0:01:52.7]} 18... Bf6 {[%clk 0:01:32.5]} 19. Rad1 {[%clk 0:01:48.7]}
19... Re6 {[%clk 0:01:30.2]} 20. Bg5 {[%clk 0:01:31.8]} 20... Qe8 {[%clk
0:01:12.6]} 21. Bxf6 {[%clk 0:01:10.6]} 21... Rxf6 {[%clk 0:01:11.9]} 22. Qh5
{[%clk 0:01:02.8]} 22... Re6 {[%clk 0:00:48.6]} 23. Re3 {[%clk 0:00:53.6]} 23...
Qe7 {[%clk 0:00:41.2]} 24. Rde1 {[%clk 0:00:52]} 24... Re8 {[%clk 0:00:40.4]}
25. Ng4 {[%clk 0:00:23.8]} 25... Bc8 {[%clk 0:00:34.9]} 26. Ne5 {[%clk
0:00:18.1]} 26... Qc7 {[%clk 0:00:21.9]} 27. Kg2 {[%clk 0:00:16.2]} 27... f6
{[%clk 0:00:16.8]} 28. Ng4 {[%clk 0:00:09.9]} 28... Rxe3 {[%clk 0:00:15.2]} 29.
Nxe3 {[%clk 0:00:10.8]} 29... Qf7 {[%clk 0:00:11.2]} 30. Qf3 {[%clk 0:00:09.4]}
30... g6 {[%clk 0:00:09.1]} 31. Rd1 {[%clk 0:00:07.3]} 31... Kg7 {[%clk
0:00:08.1]} 32. Ng4 {[%clk 0:00:06.6]} 32... Bxg4 {[%clk 0:00:06]} 33. Qxg4
{[%clk 0:00:07.5]} 33... Qe6 {[%clk 0:00:06.2]} 34. Qf4 {[%clk 0:00:03.6]} 34...
Qe4+ {[%clk 0:00:05.6]} 35. Qxe4 {[%clk 0:00:03]} 35... Rxe4 {[%clk 0:00:06]}
36. Rd2 {[%clk 0:00:02.2]} 36... g5 {[%clk 0:00:05.7]} 37. f3 {[%clk 0:00:02.8]}
37... Re6 {[%clk 0:00:04.6]} 38. Kf2 {[%clk 0:00:03.7]} 38... Kg6 {[%clk
0:00:04.8]} 39. Rd3 {[%clk 0:00:03.9]} 39... f5 {[%clk 0:00:03.8]} 40. Re3
{[%clk 0:00:04.8]} 40... Kf6 {[%clk 0:00:02.4]} 41. Ke2 {[%clk 0:00:04]} 41...
Ke7 {[%clk 0:00:01.8]} 42. Kd3 {[%clk 0:00:03.9]} 42... Kf6 {[%clk 0:00:01.8]}
43. h3 {[%clk 0:00:04.1]} 43... h5 {[%clk 0:00:01]} 44. g4 {[%clk 0:00:03.4]}
44... Ke7 {[%clk 0:00:01.3]} 45. gxf5 {[%clk 0:00:03.3]} 1-0

[Event "*** Titled Tuesday Blitz"]
[Site "Chess.com"]
[Date "2021.02.02"]
[Round "9"]
[White "ViktoriyaTarasova"]
[Black "catzapto"]
[Result "1-0"]
[WhiteElo "2288"]
[BlackElo "2115"]
[TimeControl "180+1"]
[EndTime "11:46:53 PST"]
[Termination "ViktoriyaTarasova won on time"]

1. d4 {[%clk 0:03:00.9]} 1... Nf6 {[%clk 0:02:59.3]} 2. c4 {[%clk 0:03:01.1]}
2... e6 {[%clk 0:02:57.4]} 3. Nc3 {[%clk 0:03:01.2]} 3... Bb4 {[%clk 0:02:56.4]}
4. Nf3 {[%clk 0:03:00.4]} 4... c6 {[%clk 0:02:49.3]} 5. Bg5 {[%clk 0:02:53.1]}
5... Qa5 {[%clk 0:02:46.8]} 6. Qc2 {[%clk 0:02:49.2]} 6... Ne4 {[%clk 0:02:45]}
7. Qxe4 {[%clk 0:02:36.1]} 7... Bxc3+ {[%clk 0:02:43.8]} 8. Bd2 {[%clk
0:02:34.9]} 8... Bxd2+ {[%clk 0:02:42.6]} 9. Nxd2 {[%clk 0:02:35.3]} 9... O-O
{[%clk 0:02:33.9]} 10. e3 {[%clk 0:02:34.4]} 10... d5 {[%clk 0:02:33.8]} 11. Qc2
{[%clk 0:02:34.5]} 11... Na6 {[%clk 0:02:27.9]} 12. Be2 {[%clk 0:02:24]} 12...
Bd7 {[%clk 0:01:57.7]} 13. O-O {[%clk 0:02:22.8]} 13... Qc7 {[%clk 0:01:54.3]}
14. Rfc1 {[%clk 0:02:19.4]} 14... Rac8 {[%clk 0:01:40.5]} 15. c5 {[%clk
0:02:16.4]} 15... Nb8 {[%clk 0:01:26.4]} 16. b4 {[%clk 0:02:15.3]} 16... e5
{[%clk 0:01:25.1]} 17. a4 {[%clk 0:02:09.9]} 17... exd4 {[%clk 0:01:23]} 18.
exd4 {[%clk 0:02:09.3]} 18... Rfe8 {[%clk 0:01:22.5]} 19. Bf1 {[%clk 0:02:08.4]}
19... Qf4 {[%clk 0:01:18.3]} 20. Qc3 {[%clk 0:02:07.7]} 20... Bf5 {[%clk
0:01:10]} 21. Re1 {[%clk 0:02:04.7]} 21... Nd7 {[%clk 0:01:08.5]} 22. g3 {[%clk
0:01:51.3]} 22... Qh6 {[%clk 0:00:58.2]} 23. Nb3 {[%clk 0:01:36.1]} 23... Nf6
{[%clk 0:00:53.7]} 24. f3 {[%clk 0:01:32.8]} 24... Rxe1 {[%clk 0:00:43.5]} 25.
Rxe1 {[%clk 0:01:31.5]} 25... Re8 {[%clk 0:00:44.2]} 26. Rxe8+ {[%clk
0:01:26.3]} 26... Nxe8 {[%clk 0:00:43.3]} 27. Qe1 {[%clk 0:01:26.8]} 27... Kf8
{[%clk 0:00:40.5]} 28. Qe5 {[%clk 0:01:18]} 28... Qe6 {[%clk 0:00:29.3]} 29. f4
{[%clk 0:01:08.6]} 29... Qxe5 {[%clk 0:00:28.2]} 30. fxe5 {[%clk 0:01:04.6]}
30... f6 {[%clk 0:00:14.5]} 31. Kf2 {[%clk 0:00:59.4]} 31... fxe5 {[%clk
0:00:13.8]} 32. dxe5 {[%clk 0:00:58.8]} 32... Ke7 {[%clk 0:00:13.6]} 33. Ke3
{[%clk 0:00:56]} 33... Bc8 {[%clk 0:00:12.5]} 34. Bd3 {[%clk 0:00:52.8]} 34...
g6 {[%clk 0:00:12.4]} 35. Kf4 {[%clk 0:00:48.1]} 35... Ng7 {[%clk 0:00:12.4]}
36. Kg5 {[%clk 0:00:31.1]} 36... Kf7 {[%clk 0:00:12.2]} 37. Kh6 {[%clk
0:00:25.6]} 37... Kg8 {[%clk 0:00:11.6]} 38. b5 {[%clk 0:00:21.3]} 38... Ne6
{[%clk 0:00:10.1]} 39. Bf1 {[%clk 0:00:15.2]} 39... d4 {[%clk 0:00:05.7]} 40.
Bh3 {[%clk 0:00:14.3]} 40... Kf7 {[%clk 0:00:04.8]} 41. Bxe6+ {[%clk 0:00:13]}
41... Kxe6 {[%clk 0:00:03.9]} 42. Nxd4+ {[%clk 0:00:13.4]} 42... Kxe5 {[%clk
0:00:04.3]} 43. Nf3+ {[%clk 0:00:12.8]} 43... Kd5 {[%clk 0:00:03.8]} 44. bxc6
{[%clk 0:00:13]} 44... bxc6 {[%clk 0:00:03.2]} 45. Kxh7 {[%clk 0:00:13.4]} 45...
Kxc5 {[%clk 0:00:03.3]} 46. Kxg6 {[%clk 0:00:13.9]} 46... Kd5 {[%clk 0:00:02.9]}
47. h4 {[%clk 0:00:13.8]} 47... c5 {[%clk 0:00:03.3]} 48. h5 {[%clk 0:00:14]}
48... Ba6 {[%clk 0:00:01.9]} 49. Ne1 {[%clk 0:00:12]} 1-0

[Event "*** Titled Tuesday Blitz"]
[Site "Chess.com"]
[Date "2021.02.02"]
[Round "9"]
[White "ozates"]
[Black "Naaas1"]
[Result "1-0"]
[WhiteElo "2517"]
[BlackElo "2746"]
[TimeControl "180+1"]
[EndTime "11:46:54 PST"]
[Termination "ozates won by resignation"]

1. e4 {[%clk 0:03:00.8]} 1... c5 {[%clk 0:03:00]} 2. Nf3 {[%clk 0:02:59]} 2...
d6 {[%clk 0:03:00.1]} 3. Bb5+ {[%clk 0:02:57.5]} 3... Nd7 {[%clk 0:02:58.5]} 4.
Ba4 {[%clk 0:02:57.2]} 4... Nf6 {[%clk 0:02:58]} 5. O-O {[%clk 0:02:57.5]} 5...
e6 {[%clk 0:02:52.7]} 6. d4 {[%clk 0:02:55.9]} 6... cxd4 {[%clk 0:02:52.6]} 7.
Nxd4 {[%clk 0:02:56.6]} 7... a6 {[%clk 0:02:52]} 8. c4 {[%clk 0:02:53.9]} 8...
Be7 {[%clk 0:02:41.1]} 9. Nc3 {[%clk 0:02:53.9]} 9... O-O {[%clk 0:02:39.5]} 10.
Qe2 {[%clk 0:02:49.1]} 10... Qc7 {[%clk 0:02:39.2]} 11. Rd1 {[%clk 0:02:47.1]}
11... Nb6 {[%clk 0:02:29.2]} 12. Bb3 {[%clk 0:02:44.7]} 12... Bd7 {[%clk
0:02:27.1]} 13. Bg5 {[%clk 0:02:41.9]} 13... Rac8 {[%clk 0:02:25.7]} 14. Rac1
{[%clk 0:02:37.6]} 14... Rfe8 {[%clk 0:02:07.1]} 15. Nb1 {[%clk 0:01:31]} 15...
Na4 {[%clk 0:02:01.6]} 16. Bxa4 {[%clk 0:01:29.5]} 16... Bxa4 {[%clk 0:02:01.2]}
17. b3 {[%clk 0:01:30.2]} 17... Bc6 {[%clk 0:02:01.8]} 18. Nc3 {[%clk
0:01:26.3]} 18... h6 {[%clk 0:01:55]} 19. Bh4 {[%clk 0:01:25.3]} 19... Qa5
{[%clk 0:01:28.7]} 20. Bg3 {[%clk 0:01:14.9]} 20... Qc5 {[%clk 0:01:24.2]} 21.
h3 {[%clk 0:00:21.2]} 21... Rcd8 {[%clk 0:01:20.9]} 22. Nd5 {[%clk 0:00:19]}
22... Qa5 {[%clk 0:00:36]} 23. Nxe7+ {[%clk 0:00:17.5]} 23... Rxe7 {[%clk
0:00:36.9]} 24. Nxc6 {[%clk 0:00:18.2]} 24... bxc6 {[%clk 0:00:37.1]} 25. Bxd6
{[%clk 0:00:16.7]} 25... Red7 {[%clk 0:00:36.4]} 26. e5 {[%clk 0:00:17.2]} 26...
c5 {[%clk 0:00:28.8]} 27. exf6 {[%clk 0:00:13.5]} 27... Rxd6 {[%clk 0:00:28.7]}
28. Rxd6 {[%clk 0:00:07.3]} 28... Rxd6 {[%clk 0:00:29.6]} 29. Qg4 {[%clk
0:00:07.5]} 29... g6 {[%clk 0:00:29.7]} 30. Qf4 {[%clk 0:00:07.8]} 30... Qd2
{[%clk 0:00:26.7]} 31. Qxd2 {[%clk 0:00:06.2]} 31... Rxd2 {[%clk 0:00:27.6]} 32.
b4 {[%clk 0:00:06.6]} 32... cxb4 {[%clk 0:00:19.6]} 33. c5 {[%clk 0:00:07.5]}
33... Rd7 {[%clk 0:00:18]} 34. Rc4 {[%clk 0:00:06.8]} 34... a5 {[%clk
0:00:17.9]} 35. Kf1 {[%clk 0:00:07.1]} 35... Kf8 {[%clk 0:00:17.8]} 36. Ke2
{[%clk 0:00:07.5]} 36... Ke8 {[%clk 0:00:18.2]} 37. c6 {[%clk 0:00:07.9]} 37...
Rc7 {[%clk 0:00:18.3]} 38. Kd3 {[%clk 0:00:08.5]} 38... a4 {[%clk 0:00:15.6]}
39. Kd4 {[%clk 0:00:07.6]} 39... b3 {[%clk 0:00:16.1]} 40. axb3 {[%clk
0:00:08.2]} 40... axb3 {[%clk 0:00:17]} 41. Kc5 {[%clk 0:00:08.6]} 41... Rc8
{[%clk 0:00:16]} 42. Rb4 {[%clk 0:00:08]} 42... Ra8 {[%clk 0:00:15.2]} 43. Rxb3
{[%clk 0:00:08]} 43... Kd8 {[%clk 0:00:15.5]} 44. Kd6 {[%clk 0:00:07.9]} 44...
Kc8 {[%clk 0:00:13.9]} 45. Rb7 {[%clk 0:00:07.8]} 45... Ra2 {[%clk 0:00:14.3]}
46. Rxf7 {[%clk 0:00:07.8]} 46... Rd2+ {[%clk 0:00:14.9]} 47. Kxe6 {[%clk
0:00:08]} 47... Rxf2 {[%clk 0:00:15.8]} 48. Rg7 {[%clk 0:00:07.1]} 48... Re2+
{[%clk 0:00:16.3]} 49. Kd6 {[%clk 0:00:07.3]} 49... Rd2+ {[%clk 0:00:16.5]} 50.
Ke5 {[%clk 0:00:07.3]} 50... Re2+ {[%clk 0:00:16.7]} 51. Kd4 {[%clk 0:00:07.7]}
51... Re6 {[%clk 0:00:10.3]} 52. f7 {[%clk 0:00:07.7]} 1-0

[Event "*** Titled Tuesday Blitz"]
[Site "Chess.com"]
[Date "2021.02.02"]
[Round "9"]
[White "Vugar_Manafov"]
[Black "NMJeevanK"]
[Result "1-0"]
[WhiteElo "2664"]
[BlackElo "2519"]
[TimeControl "180+1"]
[EndTime "11:46:54 PST"]
[Termination "Vugar_Manafov won by resignation"]

1. Nf3 {[%clk 0:03:00.9]} 1... Nf6 {[%clk 0:02:59.9]} 2. g3 {[%clk 0:03:00.6]}
2... d5 {[%clk 0:03:00.6]} 3. Bg2 {[%clk 0:03:00.2]} 3... e6 {[%clk 0:03:01.5]}
4. O-O {[%clk 0:03:00.6]} 4... c5 {[%clk 0:03:02.1]} 5. d3 {[%clk 0:03:01.2]}
5... Nc6 {[%clk 0:03:02.6]} 6. Nc3 {[%clk 0:03:00.6]} 6... Be7 {[%clk
0:03:02.4]} 7. e4 {[%clk 0:02:59.6]} 7... O-O {[%clk 0:03:02]} 8. h3 {[%clk
0:02:55.8]} 8... d4 {[%clk 0:03:01]} 9. Ne2 {[%clk 0:02:55.3]} 9... e5 {[%clk
0:03:01.3]} 10. Nd2 {[%clk 0:02:55.9]} 10... b5 {[%clk 0:02:59.2]} 11. f4 {[%clk
0:02:56.2]} 11... Bb7 {[%clk 0:02:55.5]} 12. g4 {[%clk 0:02:55.8]} 12... exf4
{[%clk 0:02:55.5]} 13. Nxf4 {[%clk 0:02:56.7]} 13... Ne5 {[%clk 0:02:53]} 14.
Nf3 {[%clk 0:02:56.6]} 14... Nfd7 {[%clk 0:02:50.1]} 15. Bd2 {[%clk 0:02:52.6]}
15... Bd6 {[%clk 0:02:39.5]} 16. Qe2 {[%clk 0:02:38]} 16... Qc7 {[%clk
0:02:31.3]} 17. Nh5 {[%clk 0:02:21.5]} 17... Nxf3+ {[%clk 0:02:05.9]} 18. Rxf3
{[%clk 0:02:22.4]} 18... Ne5 {[%clk 0:01:59.6]} 19. Rf2 {[%clk 0:02:20.2]} 19...
c4 {[%clk 0:01:52.6]} 20. Bf4 {[%clk 0:02:16.5]} 20... Rae8 {[%clk 0:01:49.9]}
21. Raf1 {[%clk 0:02:14.9]} 21... Ng6 {[%clk 0:01:36.8]} 22. Bxd6 {[%clk
0:02:07.1]} 22... Qxd6 {[%clk 0:01:37.7]} 23. Rf5 {[%clk 0:02:06.1]} 23... Re5
{[%clk 0:01:29]} 24. Qf2 {[%clk 0:02:00]} 24... Re7 {[%clk 0:01:03.8]} 25. h4
{[%clk 0:01:24.7]} 25... Ne5 {[%clk 0:00:51.5]} 26. Qf4 {[%clk 0:01:10]} 26...
cxd3 {[%clk 0:00:34.7]} 27. cxd3 {[%clk 0:01:10.9]} 27... Rd8 {[%clk 0:00:24.8]}
28. Qg3 {[%clk 0:00:57.8]} 28... a6 {[%clk 0:00:22.3]} 29. g5 {[%clk 0:00:57]}
29... Ng6 {[%clk 0:00:18.9]} 30. Qf2 {[%clk 0:00:53.9]} 30... Rf8 {[%clk
0:00:17.1]} 31. Nf4 {[%clk 0:00:51.5]} 31... Ne5 {[%clk 0:00:15.9]} 32. Qg3
{[%clk 0:00:49.9]} 32... Bc8 {[%clk 0:00:15.6]} 33. Nd5 {[%clk 0:00:48.3]} 33...
Bxf5 {[%clk 0:00:14.4]} 34. Nxe7+ {[%clk 0:00:48.3]} 34... Qxe7 {[%clk
0:00:15.3]} 35. exf5 {[%clk 0:00:45.1]} 35... Re8 {[%clk 0:00:14]} 36. f6 {[%clk
0:00:43.4]} 36... Qb4 {[%clk 0:00:11.4]} 37. fxg7 {[%clk 0:00:43.3]} 37... Kxg7
{[%clk 0:00:06.2]} 38. Qf4 {[%clk 0:00:38.3]} 38... Qd6 {[%clk 0:00:06]} 39. Be4
{[%clk 0:00:37.7]} 39... Qe6 {[%clk 0:00:05.6]} 40. h5 {[%clk 0:00:26.3]} 40...
Qg4+ {[%clk 0:00:05.6]} 41. Qxg4 {[%clk 0:00:26]} 41... Nxg4 {[%clk 0:00:06.5]}
42. h6+ {[%clk 0:00:26.9]} 42... Kf8 {[%clk 0:00:06.5]} 43. Bxh7 {[%clk
0:00:24]} 43... Re5 {[%clk 0:00:06.8]} 44. Bg6 {[%clk 0:00:17.3]} 44... Rxg5
{[%clk 0:00:07]} 45. Rxf7+ {[%clk 0:00:17.7]} 45... Ke8 {[%clk 0:00:03]} 46.
Rg7+ {[%clk 0:00:18.3]} 46... Kd8 {[%clk 0:00:03]} 47. h7 {[%clk 0:00:16.6]}
47... Nf6+ {[%clk 0:00:03.3]} 48. Kf1 {[%clk 0:00:16.5]} 48... Nxh7 {[%clk
0:00:04.2]} 49. Rg8+ {[%clk 0:00:16.9]} 49... Kc7 {[%clk 0:00:04.5]} 50. Bxh7
{[%clk 0:00:17]} 50... Rh5 {[%clk 0:00:05]} 51. Rg7+ {[%clk 0:00:17.2]} 51...
Kb6 {[%clk 0:00:05.3]} 52. Be4 {[%clk 0:00:17.4]} 52... Rh2 {[%clk 0:00:05.3]}
53. Bg2 {[%clk 0:00:16.8]} 53... Rh1+ {[%clk 0:00:05.9]} 54. Bxh1 {[%clk
0:00:16.5]} 1-0